[Event "Turkish Youth Teams U18 2024"]
[Site "Karaman"]
[Date "2024.04.21"]
[Round "3"]
[White "Gul, Servet"]
[Black "Yalcinkaya, Efe"]
[Result "0-1"]
[ECO "B23"]
[WhiteElo "1694"]
[BlackElo "2033"]
[Annotator "TA"]
[PlyCount "66"]
[EventDate "2024.04.21"]
[EventType "team-tourn"]
[EventCountry "TUR"]
[SourceTitle "playchess.com"]
[Source "ChessBase"]
[SourceQuality "1"]
[TimeControl "5400+30"]

{[%evp 14,66,-20,-23,10,0,0,8,18,-15,-5,-14,0,-51,-31,-96,-66,-63,-51,-74,-62,-69,-71,-70,-74,-104,-60,-78,-70,-66,-73,-64,-66,-86,-77,-83,-91,-439,-446,-434,-422,-494,-514,-553,-233,-229,-211,-497,-480,-492,-498,-483,-481,-1099,-1076]} 1. e4 {[%emt 0:01:00]} c5 {[%emt 0:01:00]} 2. Nc3 {[%emt 0:00:30]} Nc6 {[%emt 0:00:00]} 3. f4 {[%emt 0:00:00]} g6 {[%emt 0:00:00]} 4. Nf3 {[%emt 0:00:00]} Bg7 {[%emt 0:00:30]} 5. Bb5 {[%emt 0:07:30]} Nd4 {[%emt 0:01:30]} 6. Nxd4 {[%emt 0:00:30]} cxd4 {[%emt 0:00:30]} 7. Ne2 {[%emt 0:00:30]} a6 {[%emt 0:02:30]} 8. Bd3 {[%emt 0:01:30]} d6 {[%emt 0:03:30]} 9. c3 {[%emt 0:05:30]} dxc3 {[%emt 0:01:30]} 10. dxc3 {[%emt 0:09:30]} Nf6 {[%emt 0:03:30] The position is equal.} 11. h3 {[%emt 0:06:30]} O-O {[%emt 0:07:30]} 12. Be3 {[%emt 0:04:30]} b5 {[%emt 0:02:30]} 13. Bd4 {[%emt 0:05:30]} (13. O-O $11) 13... Bb7 {[%emt 0:02:30]} (13... e5 $5 14. fxe5 dxe5 15. Bxe5 Re8 $15) 14. Bxf6 {[%emt 0:01:30]} (14. O-O $15) 14... Bxf6 {[%emt 0:05:30]} 15. O-O {[%emt 0:02:30]} Qb6+ {[%emt 0:07:30]} 16. Kh2 {[%emt 0:01:30]} Rac8 {[%emt 0:06:30] Black is more active.} 17. Qb3 {[%emt 0:02:30]} Bc6 {[%emt 0:03:30]} 18. a4 {[%emt 0:02:30]} Qb7 {[%emt 0:01:30]} 19. Qb4 {[%emt 0:05:30]} Rb8 {[%emt 0:07:30]} (19... bxa4 20. Qxb7 Bxb7 21. Rxa4 $15) 20. a5 {[%emt 0:05:30]} Bg7 {[%emt 0:02:30]} 21. Rf2 {[%emt 0:09:30]} e5 {[%emt 0:08:30]} 22. f5 {[%emt 0:02:30]} Bh6 {[%emt 0:01:30] This pair of bishops is nice.} 23. Rf3 {[%emt 0:03:30] Dodges Be3} d5 {[%emt 0:00:30]} 24. exd5 {[%emt 0:03:20]} Bxd5 {[%emt 0:00:30]} 25. Rg3 $2 {[%emt 0:00:05][%mdl 8192] [#] This move loses the game for White.} (25. Qh4 $17 Bg7 (25... Bxf3 26. Qxh6 Kh8 27. gxf3 $17) 26. Re3) 25... e4 $19 {[%emt 0:00:30]} 26. Bc2 {[%emt 0:00:33]} Bc4 {[%emt 0:00:30]} 27. fxg6 {[%emt 0:00:34]} hxg6 {[%emt 0:00:30]} (27... Bxe2 28. gxf7+ (28. gxh7+ Kh8 $11) 28... Kxf7 29. Qd6 $18) 28. Bb3 {[%emt 0:03:02]} Bxe2 {[%emt 0:00:30]} (28... Qc7 $142 29. Rf1 Bg7 (29... Bxe2 $2 30. Qxe4 Bc4 31. Bxc4 $19)) 29. Rxg6+ {[%emt 0:00:30]} Kh7 {[%emt 0:00:30]} 30. Rf6 {[%emt 0:00:17]} (30. Rxh6+ Kxh6 31. Qd6+ Kh7 32. Bd5) 30... Qc7+ {[%emt 0:04:30] Black is clearly winning.} 31. Kh1 {[%emt 0:00:30]} Bc4 {[%emt 0:00:30] ...Rg8 is the strong threat.} ({Not} 31... Qe5 32. Rxa6 Rbd8 33. Rc6 $19) 32. Bc2 {[%emt 0:03:59]} Rfe8 {[%emt 0:05:30] [#] Threatens to win with ...Bf8.} 33. b3 {[%emt 0:00:50]} (33. Qd6 $142 Qxd6 34. Rxd6) 33... Bf8 {[%emt 0:00:00] Weighted Error Value: White=0.56/Black=0.27 (precise) .  Loses game:     	White=1     	---        Mistake:       	White=4     	Black=1      Inaccurate:     	White=2     	Black=2      OK:         	White=9     	Black=5      Best:        	White=1     	Black=3} 0-1

[Event "Turkish Youth Teams U18 2024"]
[Site "Karaman"]
[Date "2024.04.21"]
[Round "3"]
[White "Acar, Zeynep"]
[Black "Buyuk, Ecrin Efsa"]
[Result "1/2-1/2"]
[ECO "D13"]
[WhiteElo "1671"]
[BlackElo "1949"]
[Annotator "TA"]
[PlyCount "132"]
[EventDate "2024.04.21"]
[EventType "team-tourn"]
[EventCountry "TUR"]
[SourceTitle "playchess.com"]
[Source "ChessBase"]
[SourceQuality "1"]
[TimeControl "5400+30"]

{[%evp 14,132,24,5,51,45,65,51,72,73,82,57,76,89,80,51,77,31,23,19,26,4,24,-12,0,0,0,-31,-36,-22,0,-45,16,-2,-14,-13,-11,-13,0,0,0,-6,-6,-6,-6,-6,0,0,0,-20,-17,-141,-20,-18,-15,-30,-7,-7,-7,-33,-40,-40,-42,-43,-35,-55,-37,-40,0,-31,-49,-561,-36,-36,-46,-41,-31,-37,0,-388,-378,-360,0,-296,-16,-24,0,0,0,0,0,0,37,34,45,36,34,28,29,29,112,97,164,113,133,27,104,79,202,136,193,0,0,0,0,0,0,0,0,0,278]} 1. d4 {[%emt 0:01:00]} d5 {[%emt 0:01:00]} 2. c4 {[%emt 0:00:30]} c6 {[%emt 0:00:30]} 3. Nc3 {[%emt 0:00:30]} Nf6 {[%emt 0:00:30]} 4. cxd5 {[%emt 0:00:30]} cxd5 {[%emt 0:00:00]} 5. Nf3 {[%emt 0:00:30]} Nc6 {[%emt 0:01:00]} 6. Ne5 {[%emt 0:00:30]} Qb6 {[%emt 0:08:30]} 7. e3 {[%emt 0:00:30]} e6 {[%emt 0:06:30]} 8. Bd3 {[%emt 0:01:30]} Bd6 {[%emt 0:02:30]} (8... Nxe5 $11 9. dxe5 Nd7) 9. f4 $14 {[%emt 0:03:30]} a6 {[%emt 0:04:30]} 10. O-O {[%emt 0:00:30]} Qc7 {[%emt 0:05:30]} 11. Bd2 {[%emt 0:01:30]} O-O {[%emt 0:06:30]} 12. Qe2 {[%emt 0:02:30]} Ne7 {[%emt 0:06:30]} 13. g4 {[%emt 0:04:30]} g6 {[%emt 0:02:30]} 14. Be1 {[%emt 0:03:30]} Nd7 {[%emt 0:02:30]} 15. h4 {[%emt 0:13:30]} ({Better is} 15. Rc1 $16) 15... f6 $14 {[%emt 0:04:30]} 16. Nxd7 {[%emt 0:03:30]} Bxd7 {[%emt 0:00:30]} 17. Qg2 {[%emt 0:04:30]} Bc6 {[%emt 0:07:30]} 18. g5 {[%emt 0:03:30]} fxg5 {[%emt 0:04:30]} 19. hxg5 {[%emt 0:00:30]} Nf5 {[%emt 0:01:30]} 20. Bd2 {[%emt 0:00:30]} Qb6 {[%emt 0:01:30]} 21. Qf2 {[%emt 0:01:30]} Bb4 {[%emt 0:01:30]} 22. Rae1 {[%emt 0:04:30]} Nd6 {[%emt 0:00:30]} (22... Bxc3 $15 23. Bxc3 Bb5) 23. a3 {[%emt 0:01:30]} Bxc3 $1 {[%emt 0:00:30]} 24. Bxc3 {[%emt 0:00:30]} Bb5 {[%emt 0:01:30]} 25. Bxb5 {[%emt 0:01:30]} axb5 {[%emt 0:00:30]} 26. Bb4 {[%emt 0:00:30]} Ne4 {[%emt 0:00:30]} 27. Qg2 {[%emt 0:03:30]} Rfc8 {[%emt 0:00:30]} 28. Rc1 {[%emt 0:00:00]} Qd8 {[%emt 0:06:30]} 29. Qh3 {[%emt 0:02:00]} Qd7 {[%emt 0:01:30]} 30. Kg2 {[%emt 0:03:30]} Ra6 {[%emt 0:05:32]} 31. Kf3 {[%emt 0:02:30]} Rac6 {[%emt 0:08:20]} 32. Qh1 {[%emt 0:01:30]} (32. Rxc6 $11 {remains equal.} Rxc6 33. Rg1) 32... Qc7 {[%emt 0:03:18]} (32... Qf7 $1 $17 33. Rxc6 Rxc6) 33. Rxc6 $11 {[%emt 0:09:30]} Qxc6 {[%emt 0:00:30]} 34. Qh3 {[%emt 0:00:30]} (34. Rg1 {seems wilder.} Qc2 35. Qg2 Qc7 36. Bc3) 34... Qd7 {[%emt 0:00:00]} 35. Qg2 {[%emt 0:03:30]} Rc6 {[%emt 0:02:04]} 36. Re1 {[%emt 0:00:30]} Qc8 {[%emt 0:02:48]} 37. Re2 {[%emt 0:02:30]} Rc4 {[%emt 0:01:43]} 38. Qh3 {[%emt 0:00:30]} Rc1 {[%emt 0:00:54]} 39. Rh2 {[%emt 0:02:50]} Qd7 {[%emt 0:00:14]} 40. Qh6 {[%emt 0:02:13]} Qf7 {[%emt 0:00:51]} 41. Re2 {[%emt 0:00:15]} Qf5 {[%emt 0:01:11]} 42. Qh4 $2 {[%emt 0:02:26][%mdl 8192] [#]} (42. Rg2 $15) 42... Rg1 $2 {[%emt 0:00:24]} (42... Nxg5+ $1 $19 43. Kg3 (43. Qxg5 $2 {is the wrong capture.} Qh3+ 44. Qg3 Rf1+ 45. Rf2 Qh5+ 46. Qg4 Rxf2+ 47. Kxf2 Qxg4 $19) 43... Qe4 44. Qxg5 (44. fxg5 $2 {leads to mate.} Rg1+) 44... Rg1+ 45. Kf2 Rxg5 46. fxg5 Qf5+ 47. Ke1 Qxg5) 43. Rg2 $15 {[%emt 0:04:31]} Rf1+ {[%emt 0:01:33]} 44. Ke2 {[%emt 0:00:10]} Rb1 {[%emt 0:00:16]} 45. Kf3 {[%emt 0:00:32]} Rc1 {[%emt 0:00:30]} 46. Qh2 $2 {[%emt 0:00:45][%mdl 8192]} (46. Re2 $11) 46... Rf1+ {[%emt 0:00:42]} 47. Ke2 {[%emt 0:00:37]} Rc1 {[%emt 0:00:30]} 48. Kf3 $1 {[%emt 0:00:00]} Rc6 $2 {[%emt 0:00:22]} (48... e5 $19 {Hoping for ...exf4.} 49. dxe5 Rf1+ 50. Ke2 Rb1) 49. Qh6 $11 {[%emt 0:01:35]} Nd6 {[%emt 0:00:42]} 50. Rh2 {[%emt 0:00:59]} Qe4+ {[%emt 0:00:30]} 51. Kg4 {[%emt 0:00:30]} Qf5+ {[%emt 0:00:52]} 52. Kf3 {[%emt 0:01:29]} Qf7 {[%emt 0:00:08]} 53. Bxd6 {[%emt 0:00:46]} Rxd6 {[%emt 0:00:02]} 54. Rc2 {[%emt 0:00:00]} Qd7 {[%emt 0:00:20]} 55. Qh2 {[%emt 0:00:38]} Rc6 {[%emt 0:00:30]} 56. Qd2 {[%emt 0:00:30]} Qc8 {[%emt 0:01:04]} (56... Rc4 $11) 57. Rxc6 $16 {[%emt 0:00:50]} bxc6 {[%emt 0:00:30]} (57... Qxc6 $16 58. Qb4 Qc1) 58. Qb4 {[%emt 0:00:30]} (58. Qa5 $18) 58... Qc7 $16 {[%emt 0:00:30]} 59. b3 {[%emt 0:00:31]} (59. Qc5 $16) 59... Kf7 {[%emt 0:00:42]} (59... Qf7 $1 $11) 60. a4 {[%emt 0:00:09]} Qb7 {[%emt 0:00:15] [#]} (60... bxa4 $16 {is a better defense.} 61. bxa4 Qa7) 61. a5 $1 $18 {[%emt 0:00:18]} Qa6 {[%emt 0:00:36]} 62. Qc3 $2 {[%emt 0:00:30]} (62. Kg4 $18) 62... b4 $1 $11 {[%emt 0:00:00]} 63. Qxb4 {[%emt 0:01:07]} Qf1+ {[%emt 0:00:25]} 64. Kg3 {[%emt 0:00:30]} Qg1+ {[%emt 0:00:30]} 65. Kf3 {[%emt 0:00:30]} Qf1+ {[%emt 0:00:30]} 66. Kg3 {[%emt 0:00:00]} Qa6 $2 {[%emt 0:00:00][%mdl 8192]} (66... Qg1+ $11 {and Black has nothing to worry.} 67. Kf3 Qf1+) 1/2-1/2

[Event "Turkish Youth Teams U18 2024"]
[Site "Karaman"]
[Date "2024.04.21"]
[Round "3"]
[White "Pehlivan, Meric"]
[Black "Eracar, Ali Arda"]
[Result "1-0"]
[ECO "B96"]
[WhiteElo "1558"]
[BlackElo "1738"]
[Annotator "NA RC COMBH"]
[PlyCount "111"]
[EventDate "2024.04.21"]
[EventType "team-tourn"]
[EventCountry "TUR"]
[SourceTitle "playchess.com"]
[Source "ChessBase"]
[SourceQuality "1"]
[TimeControl "5400+30"]

1. e4 {[%emt 0:01:00]} c5 {[%emt 0:01:00]} 2. Nf3 {[%emt 0:00:30]} d6 {[%emt 0:00:30]} 3. d4 {[%emt 0:00:30]} cxd4 {[%emt 0:00:30]} 4. Nxd4 {[%emt 0:00:30]} Nf6 {[%emt 0:00:30]} 5. Nc3 {[%emt 0:00:30]} a6 {[%emt 0:00:30]} 6. Bg5 {[%emt 0:00:00]} e6 {[%emt 0:00:00]} 7. f4 {[%emt 0:00:00]} h6 {[%emt 0:00:00]} 8. Bh4 {[%emt 0:00:00]} Qb6 {[%emt 0:00:00]} 9. Qd2 {[%emt 0:00:00]} Qxb2 {[%emt 0:00:00]} 10. Rb1 {[%emt 0:00:00]} Qa3 {[%emt 0:00:00]} 11. Bxf6 {[%emt 0:00:00]} gxf6 {[%emt 0:00:00]} 12. Be2 {[%emt 0:00:00]} Be7 {[%emt 0:00:30]} 13. f5 {[%emt 0:00:00]} Nc6 {[%emt 0:06:30]} 14. Nxc6 {[%emt 0:00:00]} bxc6 {[%emt 0:00:30]} 15. O-O {[%emt 0:00:00]} Kd8 {[%emt 0:12:30]} 16. Kh1 {[%emt 0:01:30]} Kc7 {[%emt 0:06:30]} 17. Bh5 {[%emt 0:01:30]} Rf8 {[%emt 0:02:30]} 18. Rf3 {[%emt 0:07:30]} Qc5 {[%emt 0:07:30]} 19. Qxh6 {[%emt 0:02:30]} Bd7 {[%emt 0:02:30]} 20. Qe3 {[%emt 0:06:30]} Qxe3 {[%emt 0:04:30]} 21. Rxe3 {[%emt 0:00:00]} c5 {[%emt 0:08:30]} 22. Rg3 {[%emt 0:05:00]} Rab8 {[%emt 0:24:30]} 23. Rxb8 {[%emt 0:00:30]} Kxb8 {[%emt 0:00:30]} 24. Rg7 {[%emt 0:00:30]} exf5 {[%emt 0:01:30]} 25. Bxf7 {[%emt 0:02:30]} Bc8 {[%emt 0:11:08]} 26. Bg6 {[%emt 0:00:30]} Bd8 {[%emt 0:00:58]} 27. exf5 {[%emt 0:00:30]} Bb7 {[%emt 0:01:57]} 28. h4 {[%emt 0:00:30]} Ba5 {[%emt 0:02:19]} 29. Ne2 {[%emt 0:00:30]} Bd2 {[%emt 0:01:27]} 30. Kh2 {[%emt 0:00:30]} d5 {[%emt 0:01:40]} 31. g3 {[%emt 0:00:30]} d4 {[%emt 0:00:53]} 32. Re7 {[%emt 0:12:30]} Bf3 {[%emt 0:01:01]} 33. Bf7 {[%emt 0:10:30]} Be3 {[%emt 0:01:43]} 34. Nf4 {[%emt 0:00:00]} Bd1 {[%emt 0:01:26]} 35. Nd3 {[%emt 0:09:00]} Rc8 {[%emt 0:01:44]} 36. Bd5 {[%emt 0:00:00]} Rc7 {[%emt 0:00:06]} 37. Re8+ {[%emt 0:03:00]} Rc8 {[%emt 0:00:30]} 38. Rxc8+ {[%emt 0:02:30]} Kxc8 {[%emt 0:00:30]} 39. Nxc5 {[%emt 0:00:30]} Bxc2 {[%emt 0:00:30]} 40. Bb7+ {[%emt 0:00:30]} Kc7 {[%emt 0:00:30]} 41. Bxa6 {[%emt 0:00:30]} Bxf5 {[%emt 0:00:30]} 42. Nd3 {[%emt 0:00:30]} Be6 {[%emt 0:00:30]} 43. a4 {[%emt 0:00:30]} Kb6 {[%emt 0:00:30]} 44. Bb5 {[%emt 0:00:30]} Bb3 {[%emt 0:00:30]} 45. Kg2 {[%emt 0:02:30]} Bd1 {[%emt 0:00:56]} 46. Nf2 {[%emt 0:01:30]} Bc2 {[%emt 0:00:08]} 47. Ng4 {[%emt 0:01:30]} Be4+ {[%emt 0:00:30]} 48. Kf1 {[%emt 0:00:30]} Bc1 {[%emt 0:00:30]} 49. Nxf6 {[%emt 0:00:30]} Bf3 {[%emt 0:00:30]} 50. g4 {[%emt 0:00:30]} Bf4 {[%emt 0:00:30]} 51. g5 {[%emt 0:00:30]} Bd1 {[%emt 0:00:32]} 52. Nd5+ {[%emt 0:00:00]} Kc5 {[%emt 0:00:31]} 53. Nxf4 {[%emt 0:00:00]} Kd6 {[%emt 0:00:28]} 54. h5 {[%emt 0:00:30]} Ke7 {[%emt 0:00:07]} 55. h6 {[%emt 0:00:30]} Bc2 {[%emt 0:00:23]} 56. Bd3 {[%emt 0:00:00]} 1-0

[Event "Turkish Youth Teams U18 2024"]
[Site "Karaman"]
[Date "2024.04.21"]
[Round "3"]
[White "Aydin, Erem"]
[Black "Mullakutukcu, Ela"]
[Result "1/2-1/2"]
[ECO "D00"]
[WhiteElo "1546"]
[BlackElo "1693"]
[Annotator "NA RC COMBH"]
[PlyCount "53"]
[EventDate "2024.04.21"]
[EventType "team-tourn"]
[EventCountry "TUR"]
[SourceTitle "playchess.com"]
[Source "ChessBase"]
[SourceQuality "1"]
[TimeControl "5400+30"]

1. d4 {[%emt 0:01:00]} d5 {[%emt 0:01:00]} 2. e3 {[%emt 0:00:30]} Nf6 {[%emt 0:00:30]} 3. f4 {[%emt 0:00:30]} c5 {[%emt 0:00:30]} 4. c3 {[%emt 0:00:30]} Nc6 {[%emt 0:00:30]} 5. Nf3 {[%emt 0:00:00]} Bg4 {[%emt 0:00:00]} 6. Bd3 {[%emt 0:00:00]} e6 {[%emt 0:00:00]} 7. O-O {[%emt 0:00:00]} Bd6 {[%emt 0:00:30]} 8. Nbd2 {[%emt 0:05:00]} Bf5 {[%emt 0:00:30]} 9. Bxf5 {[%emt 0:00:30]} exf5 {[%emt 0:00:30]} 10. Ne5 {[%emt 0:01:30]} O-O {[%emt 0:02:30]} 11. Ndf3 {[%emt 0:03:30]} c4 {[%emt 0:02:30]} 12. b3 {[%emt 0:07:30]} Na5 {[%emt 0:05:30]} 13. bxc4 {[%emt 0:05:30]} Nxc4 {[%emt 0:00:30]} 14. Nxc4 {[%emt 0:01:30]} dxc4 {[%emt 0:00:00]} 15. Ne5 {[%emt 0:03:30]} b5 {[%emt 0:01:00]} 16. a4 {[%emt 0:01:30]} a6 {[%emt 0:00:30]} 17. Ba3 {[%emt 0:07:30]} Ne4 {[%emt 0:04:30]} 18. Qc2 {[%emt 0:03:30]} Qc7 {[%emt 0:01:30]} 19. Bxd6 {[%emt 0:01:30]} Qxd6 {[%emt 0:00:00]} 20. Rfb1 {[%emt 0:02:30]} f6 {[%emt 0:00:00]} 21. Nf3 {[%emt 0:00:30]} Rab8 {[%emt 0:02:30]} 22. Rb4 {[%emt 0:13:30]} Rb6 {[%emt 0:02:30]} 23. Nd2 {[%emt 0:03:30]} Qc6 {[%emt 0:04:30]} 24. Nxe4 {[%emt 0:00:30]} fxe4 {[%emt 0:00:30]} 25. Qa2 {[%emt 0:12:30]} Rfb8 {[%emt 0:05:30]} 26. axb5 {[%emt 0:05:30]} axb5 {[%emt 0:00:30]} 27. h3 {[%emt 0:09:31]} 1/2-1/2

[Event "Turkish Youth Teams U18 2024"]
[Site "Karaman"]
[Date "2024.04.21"]
[Round "3"]
[White "Tasdelen, Buket"]
[Black "Cetinavci, Irmak"]
[Result "1/2-1/2"]
[ECO "C01"]
[WhiteElo "1495"]
[BlackElo "1607"]
[Annotator "NA COMBH"]
[PlyCount "77"]
[EventDate "2024.04.21"]
[EventType "team-tourn"]
[EventCountry "TUR"]
[SourceTitle "playchess.com"]
[Source "ChessBase"]
[SourceQuality "1"]
[TimeControl "5400+30"]

1. e4 e6 2. d4 d5 3. exd5 exd5 4. Bd3 Nf6 5. Bf4 Be7 6. Nf3 O-O 7. O-O Bg4 8. Nbd2 Nbd7 9. c3 c6 10. Qc2 Bxf3 11. Nxf3 h6 12. Rfe1 Rc8 13. Qa4 Ra8 14. Ne5 Nxe5 15. Bxe5 Re8 16. Qb3 Qd7 17. h3 Nh7 18. Qc2 Ng5 19. Bf5 Ne6 20. Bxe6 fxe6 21. Qg6 Bd6 22. Bxd6 Qxd6 23. Re5 Re7 24. Rae1 Rae8 25. R1e3 b6 26. Rh5 Kh8 27. Rg3 Qf4 28. Qg5 Qxg5 29. Rgxg5 Rf7 30. Re5 Rf6 31. Re2 Kg8 32. Rhe5 Kf7 33. f3 Ke7 34. Kf2 Kd7 35. h4 Rc8 36. g3 Rcf8 37. f4 Rc8 38. Kf3 c5 39. Rd2 1/2-1/2

[Event "Turkish Youth Teams U18 2024"]
[Site "Karaman"]
[Date "2024.04.21"]
[Round "3"]
[White "Kilic, Melis"]
[Black "Engel, Ecrin Tuana"]
[Result "0-1"]
[ECO "E68"]
[WhiteElo "1455"]
[BlackElo "1619"]
[Annotator "NA RC COMBH"]
[PlyCount "130"]
[EventDate "2024.04.21"]
[EventType "team-tourn"]
[EventCountry "TUR"]
[SourceTitle "playchess.com"]
[Source "ChessBase"]
[SourceQuality "1"]
[TimeControl "5400+30"]

1. c4 {[%emt 0:04:00]} Nf6 {[%emt 0:02:00]} 2. Nf3 {[%emt 0:00:30]} g6 {[%emt 0:00:30]} 3. g3 {[%emt 0:00:00]} Bg7 {[%emt 0:00:00]} 4. Bg2 {[%emt 0:00:00]} O-O {[%emt 0:00:00]} 5. O-O {[%emt 0:00:30]} d6 {[%emt 0:00:00]} 6. d4 {[%emt 0:00:00]} Nbd7 {[%emt 0:00:00]} 7. Nc3 {[%emt 0:01:00]} e5 {[%emt 0:00:30]} 8. b3 {[%emt 0:02:30]} Re8 {[%emt 0:03:30]} 9. Bb2 {[%emt 0:05:30]} c6 {[%emt 0:06:30]} 10. e4 {[%emt 0:13:30]} Qc7 {[%emt 0:03:30]} 11. Qc2 {[%emt 0:14:30]} Nf8 {[%emt 0:15:30]} 12. Rfd1 {[%emt 0:11:30]} Bg4 {[%emt 0:07:30]} 13. d5 {[%emt 0:13:30]} Qc8 {[%emt 0:09:30]} 14. Re1 {[%emt 0:10:30]} h5 {[%emt 0:06:30]} 15. a3 {[%emt 0:05:33]} N8h7 {[%emt 0:01:30]} 16. Ng5 {[%emt 0:00:30]} Nxg5 {[%emt 0:00:30]} 17. Bc1 {[%emt 0:00:30]} Nfh7 {[%emt 0:00:30]} 18. Bxg5 {[%emt 0:00:30]} Bd7 {[%emt 0:00:30]} 19. Be3 {[%emt 0:00:30]} Qd8 {[%emt 0:00:30]} 20. Qd2 {[%emt 0:00:30]} Qc8 {[%emt 0:00:30]} 21. h4 {[%emt 0:00:30]} Bh3 {[%emt 0:00:30]} 22. f3 {[%emt 0:00:30]} Bxg2 {[%emt 0:00:30]} 23. Kxg2 {[%emt 0:00:30]} Qd7 {[%emt 0:00:30]} 24. Bh6 {[%emt 0:07:38]} Rac8 {[%emt 0:09:30]} 25. Bxg7 {[%emt 0:00:30]} Kxg7 {[%emt 0:00:30]} 26. b4 {[%emt 0:00:30]} Qc7 {[%emt 0:00:30]} 27. b5 {[%emt 0:00:30]} Nf6 {[%emt 0:00:30]} 28. Nd1 {[%emt 0:00:30]} Ng4 {[%emt 0:00:30]} 29. Nf2 {[%emt 0:00:30]} Nxf2 {[%emt 0:00:30]} 30. Qxf2 {[%emt 0:00:30]} Qe7 {[%emt 0:00:30]} 31. Re3 {[%emt 0:00:30]} Qf6 {[%emt 0:00:30]} 32. f4 {[%emt 0:00:30]} exf4 {[%emt 0:00:30]} 33. gxf4 {[%emt 0:00:30]} Qd4 {[%emt 0:00:30]} 34. Rf1 {[%emt 0:00:30]} Qxc4 {[%emt 0:00:30]} 35. e5 {[%emt 0:00:30]} dxe5 {[%emt 0:00:30]} 36. fxe5 {[%emt 0:00:30]} Qxd5+ {[%emt 0:00:30]} 37. Rf3 {[%emt 0:00:30]} Rxe5 {[%emt 0:11:30]} 38. Kh2 {[%emt 0:08:00]} Rf5 {[%emt 0:00:30]} 39. Rxf5 {[%emt 0:00:30]} Qxf5 {[%emt 0:00:30]} 40. Qg2 {[%emt 0:00:30]} Qe5+ {[%emt 0:00:30]} 41. Kh1 {[%emt 0:00:30]} Rc7 {[%emt 0:00:30]} 42. Qf3 {[%emt 0:00:30]} Qe7 {[%emt 0:00:30]} 43. Qc3+ {[%emt 0:00:30]} Kh7 {[%emt 0:00:30]} 44. Qg3 {[%emt 0:00:30]} Qe4+ {[%emt 0:00:30]} 45. Kh2 {[%emt 0:00:30]} Qe5 {[%emt 0:00:30]} 46. Rf4 {[%emt 0:00:30]} Re7 {[%emt 0:00:30]} 47. Kg2 {[%emt 0:00:30]} Qe2+ {[%emt 0:00:30]} 48. Kh1 {[%emt 0:00:30]} Qe1+ {[%emt 0:00:30]} 49. Qxe1 {[%emt 0:00:30]} Rxe1+ {[%emt 0:00:30]} 50. Kg2 {[%emt 0:00:30]} Kg7 {[%emt 0:00:30]} 51. Rf3 {[%emt 0:00:30]} Re4 {[%emt 0:00:30]} 52. Rd3 {[%emt 0:00:30]} Rd4 {[%emt 0:00:30]} 53. Re3 {[%emt 0:00:30]} Kf8 {[%emt 0:00:30]} 54. Rf3 {[%emt 0:00:30]} Ke7 {[%emt 0:00:30]} 55. Re3+ {[%emt 0:00:30]} Kd7 {[%emt 0:00:30]} 56. Rf3 {[%emt 0:00:30]} Rxh4 {[%emt 0:00:30]} 57. Rxf7+ {[%emt 0:00:30]} Kc8 {[%emt 0:00:30]} 58. Rg7 {[%emt 0:00:30]} c5 {[%emt 0:00:30]} 59. Rxg6 {[%emt 0:00:30]} Rg4+ {[%emt 0:00:30]} 60. Rxg4 {[%emt 0:00:30]} hxg4 {[%emt 0:00:30]} 61. Kg3 {[%emt 0:00:30]} c4 {[%emt 0:00:30]} 62. Kxg4 {[%emt 0:00:30]} c3 {[%emt 0:00:30]} 63. Kg5 {[%emt 0:00:30]} c2 {[%emt 0:00:30]} 64. Kf5 {[%emt 0:00:30]} c1=Q {[%emt 0:00:30]} 65. Kf6 {[%emt 0:00:30]} Qe3 {[%emt 0:00:30]} 0-1

[Event "Turkish Youth Teams U18 2024"]
[Site "Karaman"]
[Date "2024.04.21"]
[Round "3"]
[White "Cetinavci, Duru"]
[Black "Tasdelen, Asuman Betul"]
[Result "1-0"]
[ECO "C55"]
[WhiteElo "1449"]
[BlackElo "1425"]
[Annotator "NA RC COMBH"]
[PlyCount "63"]
[EventDate "2024.04.21"]
[EventType "team-tourn"]
[EventCountry "TUR"]
[SourceTitle "playchess.com"]
[Source "ChessBase"]
[SourceQuality "1"]
[TimeControl "5400+30"]

1. e4 {[%emt 0:01:00]} e5 {[%emt 0:01:00]} 2. Nf3 {[%emt 0:00:30]} Nf6 {[%emt 0:00:00]} 3. Nc3 {[%emt 0:01:30]} Nc6 {[%emt 0:00:00]} 4. Bc4 {[%emt 0:01:30]} Be7 {[%emt 0:02:30]} 5. d3 {[%emt 0:00:30]} Bb4 {[%emt 0:02:30]} 6. Bd2 {[%emt 0:02:30]} d6 {[%emt 0:01:30]} 7. h3 {[%emt 0:01:30]} h6 {[%emt 0:02:30]} 8. O-O {[%emt 0:05:30]} Be6 {[%emt 0:01:30]} 9. Bxe6 {[%emt 0:06:30]} fxe6 {[%emt 0:00:30]} 10. Ne2 {[%emt 0:02:30]} Bc5 {[%emt 0:05:30]} 11. Ng3 {[%emt 0:03:30]} Qd7 {[%emt 0:02:30]} 12. a3 {[%emt 0:02:30]} O-O-O {[%emt 0:02:30]} 13. b4 {[%emt 0:01:30]} Bb6 {[%emt 0:00:00]} 14. c4 {[%emt 0:02:30]} Nd4 {[%emt 0:03:00]} 15. Nxd4 {[%emt 0:02:30]} Bxd4 {[%emt 0:00:30]} 16. Rb1 {[%emt 0:01:30]} g5 {[%emt 0:03:30]} 17. Ne2 {[%emt 0:02:30]} Bb6 {[%emt 0:02:30]} 18. a4 {[%emt 0:05:30]} a6 {[%emt 0:01:30]} 19. b5 {[%emt 0:04:30]} axb5 {[%emt 0:00:30]} 20. axb5 {[%emt 0:00:30]} c6 {[%emt 0:05:30]} 21. Qa4 {[%emt 0:10:30]} Kc7 {[%emt 0:06:30]} 22. Ba5 {[%emt 0:05:30]} c5 {[%emt 0:01:30]} 23. Bxb6+ {[%emt 0:01:30]} Kxb6 {[%emt 0:00:30]} 24. Ra1 {[%emt 0:01:30]} Ra8 {[%emt 0:00:30]} 25. Qxa8 {[%emt 0:02:30]} Rxa8 {[%emt 0:00:30]} 26. Rxa8 {[%emt 0:00:30]} Ne8 {[%emt 0:01:30]} 27. Nc3 {[%emt 0:00:30]} d5 {[%emt 0:01:30]} 28. exd5 {[%emt 0:01:30]} Nf6 {[%emt 0:01:30]} 29. Na4+ {[%emt 0:02:30]} Kc7 {[%emt 0:00:30]} 30. Nxc5 {[%emt 0:00:30]} Qe7 {[%emt 0:00:30]} 31. Nxe6+ {[%emt 0:00:30]} Kd6 {[%emt 0:00:00]} 32. Rd8+ {[%emt 0:00:30]} 1-0